bitfinex/quotes_ETHUSD_20241122
["timestamp","ask_amount","ask_price","bid_price","bid_amount"]
[1732267613970,0.55173625,3360.1,3359.4,0.2955]
[1732267616044,0.02975817,3360.5,3359.4,0.2955]
[1732267616275,5.4876045,3360.9,3360.3,0.2955]
[1732267616564,5.4876045,3360.9,3360.3,1.7327]
[1732267616751,6.14029495,3360.9,3360.3,1.7327]
[1732267616954,0.02975817,3360.8,3360.3,1.7327]
[1732267617128,0.02975817,3360.8,3358.9,0.2955]
[1732267617331,0.02975817,3360.8,3360.4,0.2955]
[1732267617526,0.72093531,3360.7,3360.4,0.2955]
[1732267617753,0.02975817,3360.6,3360.4,0.2955]
[1732267617951,0.02975817,3360.7,3360.4,0.2955]
[1732267618151,0.55173627,3360.6,3360.4,0.2955]
[1732267618581,0.55173627,3360.6,3359.9,0.2955]
[1732267618749,5.4876045,3360.8,3360.4,1.7304]
[1732267619067,0.02975817,3360.7,3360.4,0.2955]
[1732267619273,0.57851862,3360.7,3360.4,0.2955]
[1732267619736,0.02975817,3360.7,3360.4,0.2955]
[1732267619938,5.25897548,3360.8,3360.4,0.03711281]
[1732267620273,5.25897548,3360.8,3360.4,0.2955]
[1732267620768,0.52589755,3360.8,3360.4,0.2955]
[1732267620954,5.25897548,3361.2,3360.4,0.2955]
[1732267621169,1.0691,3361.1,3360.4,0.2955]
[1732267621345,1.0691,3361.1,3360.5,0.2955]
[1732267621544,1.0691,3360.9,3360.5,0.18423208]
[1732267621879,1.0691,3360.9,3360.2,0.2955]
[1732267622755,1.0691,3360.9,3358.2,0.01]
[1732267622756,1.0691,3360.9,3360.5,0.2955]
[1732267623079,0.21449976,3360.8,3360.5,0.2955]
[1732267623293,6.87807548,3360.7,3360.5,0.2955]
[1732267623447,6.87807548,3360.7,3359.4,0.2955]
[1732267623644,0.55,3360.5,3359.4,0.2955]
[1732267623852,5.25897548,3360.6,3359.4,0.2955]
[1732267624173,5.94678303,3360.5,3359.4,0.2955]
[1732267624353,5.25897548,3360.5,3359.4,0.2955]
[1732267624685,5.25897548,3360.5,3360.2,0.2955]
[1732267624926,1.3671,3360.4,3360.2,0.2955]
[1732267625190,0.66260755,3360.3,3360.2,0.2955]
[1732267625374,1.21260755,3360.3,3360.2,0.2955]
[1732267625570,1.21260755,3360.3,3357.7,0.02976435]
[1732267625781,5.25897548,3360.2,3357.7,0.02976435]
[1732267625982,5.25897548,3360.2,3357.8,0.2955]
[1732267626149,5.25897548,3360.2,3357.9,0.02976788]
[1732267626678,5.25897548,3360.2,3358.0,0.2955]
[1732267626876,5.25897548,3360.2,3359.6,0.2955]
[1732267627183,5.92158303,3360.1,3359.6,0.2955]
[1732267627406,6.61797548,3360.0,3359.6,0.2955]
[1732267627889,6.61797548,3360.0,3359.7,0.2955]
[1732267628266,0.66179755,3359.9,3359.7,0.2955]
[1732267628903,0.66179755,3359.9,3359.6,0.2955]
[1732267629068,6.61797548,3360.0,3359.6,0.2955]
[1732267629511,1.3805,3359.9,3359.6,0.2955]
[1732267630208,5.25897548,3360.0,3359.5,3.0]
[1732267630209,5.25897548,3360.0,3359.7,0.2955]
[1732267630380,0.52589755,3359.9,3359.7,0.2955]
[1732267631308,0.52589755,3359.9,3359.6,0.2955]
[1732267631512,5.25897548,3360.0,3359.6,0.2955]
[1732267632388,5.25897548,3360.0,3359.7,0.2955]
[1732267632595,5.25897548,3359.9,3359.7,0.2955]
[1732267632910,0.52589755,3359.8,3359.7,0.2955]
[1732267633235,1.3565,3359.6,3358.3,1.4439]
[1732267633392,5.80897548,3359.5,3358.4,0.2955]
[1732267633579,0.55,3359.1,3358.5,0.2955]
[1732267634126,1.3565,3359.2,3358.5,0.2955]
[1732267634127,1.4649,3359.2,3358.5,0.2955]
[1732267634288,0.55,3359.3,3358.5,0.2955]
[1732267634289,1.4649,3358.8,3358.5,0.2955]
[1732267634488,5.25897548,3358.7,3358.6,0.2955]
[1732267634797,5.25897548,3358.7,3356.4,0.02977663]
[1732267635004,5.93136303,3358.6,3356.4,0.02977663]
[1732267635194,5.25897548,3358.6,3356.4,0.02977663]
[1732267635389,5.25897548,3358.6,3356.5,0.2955]
[1732267635613,5.25897548,3358.6,3356.6,0.02978243]
[1732267636342,5.25897548,3358.6,3358.3,0.2955]
[1732267636545,5.25897548,3358.6,3357.2,0.2955]
[1732267636546,1.4561,3358.3,3357.2,0.2955]
[1732267636708,5.25897548,3358.2,3357.2,0.2955]
[1732267636903,1.3477,3358.0,3357.2,0.2955]
[1732267637118,0.55,3357.8,3357.2,0.2955]
[1732267637410,0.55,3357.9,3357.2,0.2955]
[1732267638146,1.4369,3357.7,3357.2,0.2955]
[1732267639334,1.4369,3357.7,3356.7,0.2955]
[1732267639528,2.16148755,3357.7,3357.3,3.0]
[1732267639728,5.25897548,3357.8,3357.4,0.2955]
[1732267640059,5.25897548,3357.8,3355.7,0.32367989]
[1732267640060,5.25897548,3357.8,3357.5,3.2955]
[1732267640352,5.25897548,3357.8,3355.8,0.02978617]
[1732267640353,5.25897548,3357.8,3357.7,3.2955]
[1732267640503,5.25897548,3357.9,3357.7,3.2955]
[1732267641015,5.25897548,3357.9,3357.7,0.2955]
[1732267641216,5.25897548,3357.9,3356.2,0.02978321]
[1732267641217,5.25897548,3357.9,3357.8,0.2955]
[1732267643445,5.25897548,3357.9,3357.5,0.0280977]
[1732267644525,1.4078,3358.3,3357.5,0.0280977]
[1732267644526,5.25897548,3357.8,3357.5,0.0280977]
[1732267644961,4.96347548,3357.8,3357.0,0.2955]
[1732267645163,4.96347548,3357.8,3357.2,0.2955]
[1732267646041,4.08847548,3357.8,3357.2,0.2955]
[1732267647654,4.08847548,3357.7,3357.2,0.2955]
[1732267647854,4.08847548,3357.7,3357.4,0.2955]
[1732267649477,4.08847548,3357.7,3357.5,0.2955]
[1732267650176,4.08612155,3357.7,3357.5,0.2955]
[1732267650550,4.08612155,3357.7,3357.0,0.2955]
[1732267650747,4.08612155,3357.7,3357.2,0.2955]
[1732267652367,5.55912155,3357.7,3357.6,0.2955]
[1732267652594,5.55912155,3357.7,3357.6,3.2955]
[1732267652773,5.55912155,3357.7,3357.6,0.2955]
[1732267653154,5.55912155,3357.7,3357.6,3.2955]
[1732267653349,5.55912155,3357.7,3357.0,0.2955]
[1732267653550,0.01,3359.9,3356.9,1.3882]
[1732267653551,1.3955,3358.0,3357.6,0.2955]
[1732267653793,1.3955,3359.3,3357.9,0.2955]
[1732267654000,10.1755,3359.2,3358.5,0.2955]
[1732267654153,10.1755,3359.2,3358.4,3.0]
[1732267654353,1.01755,3359.1,3358.1,0.2955]
[1732267655062,0.72065,3359.1,3358.0,1.0926]
[1732267655406,1.089615,3359.0,3358.1,0.2969]
[1732267656523,1.089615,3359.0,3358.5,0.2969]
[1732267656810,8.78,3358.9,3358.5,0.2969]
[1732267657585,8.78,3358.9,3358.0,1.0926]
[1732267657586,8.78,3358.9,3358.1,0.2969]
[1732267657788,8.78,3358.9,3358.8,0.2969]
[1732267657988,1.01755,3358.9,3358.8,0.2969]
[1732267658188,8.78,3359.1,3358.8,0.2969]
[1732267658418,1.3549,3359.0,3358.8,0.2969]
[1732267658711,1.3549,3359.0,3358.9,0.2969]
[1732267660814,1.3549,3359.0,3358.5,0.2969]
[1732267661020,1.01349,3358.9,3358.5,0.2969]
[1732267661816,1.01349,3358.9,3358.2,0.2969]
[1732267662302,1.3549,3359.0,3358.6,0.2969]
[1732267662622,8.78,3358.9,3358.8,0.2969]
[1732267662777,1.4731,3359.4,3358.8,0.2969]
[1732267662974,1.4731,3359.4,3356.4,1.26377557]
[1732267662975,1.4731,3358.7,3356.5,1.4081]
[1732267663182,1.4731,3358.3,3356.5,1.4081]
[1732267663990,1.4731,3358.3,3356.8,0.2969]
[1732267664191,2.49841,3358.3,3357.0,0.2969]
[1732267664392,1.4731,3358.3,3357.2,0.2969]
[1732267664604,8.78,3358.2,3357.2,0.2969]
[1732267664928,1.4731,3358.3,3357.4,0.2969]
[1732267664929,10.2531,3358.3,3357.4,0.2969]
[1732267665081,8.78,3358.3,3357.9,0.2969]
[1732267665280,1.4627,3358.7,3357.9,0.2969]
[1732267665281,8.78,3358.6,3357.9,0.2969]
[1732267665508,8.78,3358.6,3358.1,0.2969]
[1732267666502,8.78,3358.6,3358.2,0.2969]
[1732267666503,1.3806,3358.5,3358.2,0.2969]
[1732267667480,1.3806,3358.5,3358.3,0.2969]
[1732267668522,1.3806,3358.5,3358.4,0.2969]
[1732267668831,1.9306,3358.5,3358.4,0.2969]
[1732267668978,10.7106,3358.5,3358.4,0.2969]
[1732267669177,9.33,3358.5,3357.0,1.4866]
[1732267669376,1.3556,3358.3,3357.1,0.2969]
[1732267670220,1.3556,3358.3,3357.0,1.19]
[1732267670221,1.3556,3358.3,3357.6,0.2969]
[1732267671379,1.3556,3358.3,3357.4,0.2969]
[1732267671713,9.33,3358.4,3357.4,0.2969]
[1732267671714,1.3715,3358.1,3357.4,0.2969]
[1732267672419,0.55,3358.0,3357.5,0.2969]
[1732267672719,1.3715,3357.9,3357.5,0.2969]
[1732267673288,1.3715,3357.9,3356.8,0.2969]
[1732267673853,10.7286,3357.8,3356.8,0.2969]
[1732267674159,1.4921,3357.6,3356.8,0.2969]
[1732267674327,1.4921,3357.6,3356.5,0.2969]
[1732267674530,10.8221,3357.5,3356.5,0.2969]
[1732267674734,1.4921,3357.2,3356.0,0.2969]
[1732267674922,1.4921,3357.0,3356.0,0.2969]
[1732267675122,1.02721,3356.9,3356.0,0.2969]
[1732267675922,1.4921,3357.0,3356.0,0.2969]
[1732267679748,8.78,3357.1,3356.1,1.7418]
[1732267679975,8.78,3357.1,3356.1,1.77159438]
[1732267680139,8.78,3357.1,3356.1,1.7418]
[1732267680467,8.78,3357.7,3357.3,0.2969]
[1732267681384,8.78,3357.7,3356.5,0.2969]
[1732267681543,8.78,3357.7,3356.7,0.2969]
[1732267681881,8.78,3357.7,3356.9,0.2969]
[1732267683279,8.78,3357.7,3356.6,0.17418]
[1732267683280,8.78,3357.7,3357.0,0.2969]
[1732267684276,8.78,3357.7,3356.4,1.4762]
[1732267684477,8.78,3357.7,3356.5,0.2969]
[1732267684683,8.78,3357.7,3356.4,1.1796]
[1732267684684,8.78,3357.7,3357.1,0.2969]
[1732267684982,1.3452,3357.5,3357.1,0.2969]
[1732267685668,1.3452,3357.5,3357.0,0.2969]
[1732267686584,1.4486,3357.3,3354.6,0.04979105]
[1732267686879,3.49686243,3357.8,3355.4,0.2969]
[1732267686880,1.4486,3356.9,3355.4,0.2969]
[1732267687081,8.78,3356.8,3355.4,0.2969]
[1732267687493,1.4486,3356.7,3355.6,0.2969]
[1732267688056,8.78,3356.6,3356.5,0.2969]
[1732267688255,9.910646,3356.6,3356.5,0.2969]
[1732267691288,8.78,3357.1,3356.5,1.7409]
[1732267692207,8.78,3357.2,3356.5,1.7409]
[1732267692495,8.78,3357.2,3357.1,0.2969]
[1732267692496,10.2246,3357.2,3357.1,0.2969]
[1732267693283,10.2246,3357.2,3356.8,0.2969]
[1732267693448,1.02246,3357.1,3356.8,0.2969]
[1732267693655,8.78,3357.0,3356.8,0.2969]
[1732267693963,2.0527,3356.9,3355.2,1.5156]
[1732267694163,8.78,3356.8,3355.5,0.2969]
[1732267694704,1.3826,3356.7,3355.4,1.5156]
[1732267694856,1.3826,3356.5,3354.6,1.4782]
[1732267695055,1.3826,3356.3,3354.7,0.2969]
[1732267695294,8.78,3356.4,3354.7,0.2969]
[1732267695295,1.4189,3356.1,3354.7,0.2969]
[1732267695458,8.78,3356.0,3354.7,0.2969]
[1732267696259,0.55,3355.6,3354.3,1.4323]
[1732267696465,1.4309,3355.5,3354.4,0.2969]
[1732267697616,1.4309,3355.5,3354.9,0.2969]
[1732267698593,1.4309,3355.5,3355.0,0.2969]
[1732267698798,8.78,3355.4,3355.0,3.2969]
[1732267698956,8.78,3355.4,3355.0,0.2969]
[1732267699161,8.78,3355.4,3354.3,1.4323]
[1732267699401,8.78,3355.4,3355.1,0.2969]
[1732267700365,8.78,3355.4,3355.2,0.2969]
[1732267701403,8.78,3355.4,3355.1,0.2969]
[1732267702614,9.80109,3355.4,3355.1,0.2969]
[1732267703614,8.78,3355.4,3355.1,0.2969]
[1732267705288,8.78,3355.4,3354.4,0.2969]
[1732267705504,8.78,3355.4,3354.9,0.2969]
[1732267705682,9.80109,3355.4,3354.9,0.2969]
[1732267706591,9.80109,3355.4,3355.0,0.2969]
[1732267707610,9.80109,3355.4,3354.9,0.2969]
[1732267707837,8.78,3355.4,3354.9,0.2969]
[1732267708146,1.4868,3355.3,3354.9,0.2969]
[1732267709826,1.4868,3355.3,3354.7,0.2969]
[1732267709827,8.78,3355.2,3354.7,0.2969]
[1732267710018,9.80668,3355.2,3354.7,0.2969]
[1732267710848,8.78,3355.2,3354.8,0.2969]
[1732267711828,8.78,3355.2,3354.7,0.2969]
[1732267712932,8.78,3355.2,3354.8,0.2969]
[1732267713541,8.77952616,3355.2,3354.8,0.2969]
[1732267713849,8.77952616,3355.1,3354.8,0.2969]
[1732267714023,8.77952616,3355.1,3354.6,3.0]
[1732267714024,8.77952616,3355.1,3354.9,0.2969]
[1732267714203,8.77952616,3355.1,3354.6,3.2969]
[1732267714417,8.77952616,3355.1,3354.6,0.2969]
[1732267714760,8.77952616,3355.1,3354.6,3.2969]
[1732267715049,8.77952616,3355.1,3354.6,0.2969]
[1732267715632,8.77952616,3355.1,3354.6,3.2969]
[1732267716172,8.77952616,3355.1,3354.6,0.2969]
[1732267716773,8.77952616,3355.0,3354.9,0.2969]
[1732267717846,8.77952616,3355.0,3354.2,0.2969]
[1732267718180,8.77952616,3355.0,3354.2,0.45025892]
[1732267719674,8.77952616,3354.9,3354.2,3.45025892]
[1732267719852,8.48262616,3354.9,3354.3,0.2969]
[1732267720049,8.48262616,3354.9,3354.3,0.56982224]
[1732267722080,8.48262616,3354.9,3354.3,0.56982224]
[1732267722845,8.48262616,3354.8,3354.3,0.56982224]
[1732267723145,8.48262616,3354.8,3354.3,0.2969]
[1732267725216,8.48262616,3354.8,3354.5,0.2969]
[1732267725622,8.48262616,3354.8,3354.4,1.5167087]
[1732267725941,8.48262616,3355.2,3354.5,0.2969]
[1732267726106,8.48262616,3355.2,3354.5,0.76390676]
[1732267728550,1.4631,3355.9,3355.4,0.2969]
[1732267728751,8.48262616,3355.8,3355.4,0.2969]
[1732267728911,8.48262616,3355.8,3355.4,1.7935]
[1732267729263,8.48262616,3355.8,3355.5,0.2969]
[1732267729552,8.48262616,3355.8,3355.5,3.2969]
[1732267729724,8.48262616,3355.8,3355.5,0.2969]
[1732267730855,1.4018,3356.9,3355.9,0.2969]
[1732267731004,1.4018,3356.9,3356.3,0.2969]
[1732267731005,7.31348053,3356.8,3356.3,0.2969]
[1732267731835,7.31348053,3356.8,3356.0,1.531]
[1732267731836,7.31348053,3356.8,3356.5,0.2969]
[1732267733112,7.31150424,3356.8,3356.6,0.2969]
[1732267733333,7.31150424,3356.7,3356.6,0.2969]
[1732267734045,7.31150424,3356.7,3356.2,0.2969]
[1732267735643,7.31150424,3356.7,3356.1,3.2969]
[1732267736120,8.18272466,3356.7,3356.2,0.2969]
[1732267736449,8.18272466,3356.7,3355.6,2.25204548]
[1732267736635,9.68124671,3356.6,3355.7,0.2969]
[1732267736946,8.72290424,3356.6,3355.7,0.2969]
[1732267737145,8.72290424,3356.6,3355.4,0.2969]
[1732267737651,8.72290424,3356.6,3355.4,3.2969]
[1732267737811,1.4529,3356.5,3355.4,3.2969]
[1732267738015,1.4529,3356.3,3355.7,0.2969]
[1732267738554,7.31150424,3356.2,3355.7,0.2969]
[1732267739058,7.31150424,3356.2,3355.8,0.2969]
[1732267740148,7.31150424,3356.2,3355.2,0.2225814]
[1732267740149,7.31150424,3356.2,3355.7,0.2969]
[1732267740739,7.31150424,3356.2,3356.0,0.2969]
[1732267741642,7.31150424,3356.2,3355.6,1.4621]
[1732267741643,7.31150424,3356.2,3356.1,0.2969]
[1732267742765,8.18314466,3356.2,3355.7,0.2969]
[1732267742940,1.5045,3356.1,3355.7,0.2969]
[1732267743109,7.31150424,3356.0,3355.7,0.2969]
[1732267743308,7.31150424,3355.9,3355.7,0.2969]
[1732267743724,7.31150424,3355.9,3355.3,0.2969]
[1732267744643,1.4499,3355.8,3355.3,0.2969]
[1732267744950,1.4499,3355.8,3355.4,0.2969]
[1732267745150,2.34980183,3355.8,3355.4,0.2969]
[1732267745815,2.34980183,3355.8,3355.5,0.2969]
[1732267746018,1.4499,3355.8,3355.5,0.2969]
[1732267746724,7.31150424,3355.7,3355.5,0.2969]
[1732267747035,7.31150424,3355.7,3355.6,0.2969]
[1732267748050,7.31150424,3355.7,3355.4,0.2969]
[1732267748908,7.31150424,3355.7,3355.0,0.2969]
[1732267749137,7.31150424,3355.6,3355.4,0.2969]
[1732267749834,1.3945,3355.5,3355.4,0.2969]
[1732267750146,9.57660466,3355.5,3355.4,0.2969]
[1732267750349,8.70600424,3355.5,3355.4,0.2969]
[1732267750881,8.70600424,3355.5,3354.4,0.73243435]
[1732267750882,8.70600424,3355.5,3354.5,0.2969]
[1732267751172,8.70600424,3355.5,3354.4,0.2969]
[1732267751363,0.87060042,3355.4,3354.4,0.2969]
[1732267751679,0.87060042,3355.4,3354.7,0.2969]
[1732267752647,0.87060042,3355.4,3354.4,0.2969]
[1732267752854,0.87060042,3355.4,3354.4,3.85999815]
[1732267753562,1.4695,3355.3,3354.4,0.2969]
[1732267753860,1.4695,3355.3,3354.6,0.2969]
[1732267754247,0.87060042,3355.4,3354.6,0.2969]
[1732267754248,1.398,3355.1,3354.6,0.2969]
[1732267754980,1.398,3355.1,3354.2,0.2969]
[1732267755180,7.31150424,3355.0,3354.2,0.2969]
[1732267755480,1.4367,3354.9,3354.2,0.2969]
[1732267755773,7.31150424,3355.0,3354.2,1.8014]
[1732267756171,7.31150424,3355.0,3354.2,2.16190097]
[1732267756473,7.31114983,3355.0,3354.2,1.8014]
[1732267756781,7.31114983,3355.0,3354.4,0.2969]
[1732267757571,7.31114983,3355.0,3354.3,0.2969]
[1732267757784,7.31114983,3354.9,3354.3,0.2969]
[1732267757981,8.19020481,3354.9,3354.3,0.2969]
[1732267758342,7.30941908,3354.9,3354.3,0.2969]
[1732267759043,6.59126369,3356.3,3354.5,1.7671]
[1732267759381,1.5037,3356.4,3354.9,0.2969]
[1732267759382,6.59126369,3356.2,3354.9,0.2969]
[1732267759539,6.59126369,3356.1,3355.1,0.2969]
[1732267759741,6.59126369,3356.1,3355.3,0.2969]
[1732267759970,6.59126369,3356.0,3355.3,0.2969]
[1732267760377,0.15037,3356.3,3355.3,0.2969]
[1732267760378,6.59126369,3355.9,3355.3,0.2969]
[1732267761073,6.59126369,3355.9,3354.4,0.0298047]
[1732267761074,6.59126369,3355.9,3355.4,3.2969]
[1732267761282,6.59126369,3355.9,3355.6,0.2969]
[1732267762349,6.5226886,3355.9,3355.6,0.2969]
[1732267763200,6.5226886,3355.9,3355.5,3.2969]
[1732267763548,6.5226886,3355.9,3355.5,0.2969]
[1732267764859,6.2257886,3355.8,3355.4,1.5143]
[1732267765061,6.2257886,3355.8,3355.5,0.2969]
[1732267765626,1.5037,3356.4,3355.5,0.2969]
[1732267765627,6.2257886,3356.3,3355.5,0.2969]
[1732267769723,1.4199,3356.7,3355.7,0.2969]
[1732267770212,6.2257886,3356.6,3355.7,0.2969]
[1732267770398,6.2257886,3356.5,3355.7,0.2969]
[1732267770602,1.4199,3356.7,3355.6,1.4807]
[1732267770603,6.2257886,3356.6,3355.9,0.2969]
[1732267771508,6.2257886,3356.6,3355.7,0.2969]
[1732267771683,6.99035746,3356.6,3355.7,0.2969]
[1732267772017,6.99035746,3356.6,3356.0,0.2969]
[1732267772190,6.2257886,3356.5,3356.0,0.2969]
[1732267772531,1.5104,3356.4,3355.2,1.4824]
[1732267772681,1.5104,3356.4,3354.1,0.1802892]
[1732267772682,1.5104,3356.2,3355.3,0.2969]
[1732267772885,1.5104,3356.0,3355.4,0.2969]
[1732267773316,1.5104,3355.8,3354.2,1.4824]
[1732267773622,6.7757886,3355.9,3354.2,1.4824]
[1732267773623,1.4647,3355.6,3354.2,1.4824]
[1732267773781,1.4647,3355.6,3354.3,0.2969]
[1732267773987,1.4089,3355.4,3354.3,0.2969]
[1732267774184,1.4089,3355.4,3354.2,1.1858]
[1732267774724,1.4089,3355.4,3354.3,0.2969]
[1732267774890,0.21779489,3355.3,3354.3,0.2969]
[1732267775583,0.21779489,3355.3,3354.3,3.2969]
[1732267776610,0.21779489,3355.3,3354.3,0.2969]
[1732267776827,0.21779489,3355.3,3354.3,3.2969]
[1732267776828,6.2257886,3355.2,3354.3,3.2969]
[1732267776994,7.08794184,3355.2,3354.3,3.2969]
[1732267777706,7.08794184,3355.2,3354.3,0.2969]
[1732267778095,1.497,3355.1,3354.2,0.2969]
[1732267778306,7.10606227,3355.0,3354.2,0.2969]
[1732267778538,6.2257886,3355.0,3354.2,0.2969]
[1732267779898,6.2257886,3355.0,3354.4,0.2969]
[1732267782542,6.2257886,3355.0,3354.6,0.2969]
[1732267782903,6.2257886,3355.3,3354.6,0.2969]
[1732267783098,6.99726746,3355.3,3354.6,0.2969]
[1732267783298,6.99726746,3355.3,3354.2,0.2969]
[1732267783299,1.489,3355.2,3354.2,0.2969]
[1732267783503,0.84862675,3355.1,3354.2,0.2969]
[1732267784805,0.55172675,3355.1,3354.1,0.89569481]
[1732267785012,0.55172675,3355.1,3354.2,0.2969]
[1732267785801,6.2257886,3355.0,3354.2,0.2969]
[1732267787322,6.2257886,3355.0,3354.4,0.2969]
[1732267787536,6.2257886,3355.0,3354.5,0.02980885]
[1732267787878,6.2257886,3355.0,3354.6,0.2969]
[1732267788037,1.5515,3355.8,3354.6,0.2969]
[1732267788351,6.2257886,3355.7,3355.0,0.2969]
[1732267788510,6.2257886,3355.7,3355.5,0.2969]
[1732267788710,6.2257886,3356.0,3355.5,0.2969]
[1732267789307,6.2257886,3356.0,3355.0,0.2969]
[1732267789811,1.4596,3355.9,3355.1,3.2969]
[1732267790012,2.23732886,3355.9,3355.1,3.2969]
[1732267790207,2.23732886,3355.9,3355.1,0.2969]
[1732267790460,1.4868,3355.8,3355.1,3.2969]
[1732267790816,1.4868,3355.8,3355.1,0.2969]
[1732267791012,1.4868,3355.8,3355.4,0.2969]
[1732267791241,2.25805886,3355.8,3355.4,0.2969]
[1732267791850,6.2257886,3356.0,3355.4,0.2969]
[1732267792160,6.2257886,3356.0,3355.4,3.2969]
[1732267792664,6.2257886,3356.0,3355.4,0.2969]
[1732267794827,5.9288886,3355.9,3355.4,0.2969]
[1732267795930,5.9288886,3355.9,3355.6,0.2969]
[1732267796333,1.5421,3355.8,3355.6,0.2969]
[1732267797046,1.5421,3355.8,3355.7,0.2969]
[1732267797989,7.4709886,3355.8,3354.9,0.2969]
[1732267798557,7.4709886,3355.8,3355.3,0.2969]
[1732267799390,0.73767886,3355.9,3355.3,0.2969]
[1732267799391,5.9288886,3355.7,3355.3,0.2969]
[1732267799599,1.5539,3355.6,3354.8,0.2969]
[1732267799773,5.9288886,3355.5,3354.8,0.2969]
[1732267799985,0.74827886,3355.4,3354.8,0.2969]
[1732267800499,1.516,3355.3,3354.3,0.2969]
[1732267800706,1.516,3355.3,3354.3,0.63490097]
[1732267800862,1.516,3355.3,3354.3,0.2969]
[1732267802168,5.9288886,3355.2,3354.3,0.2969]
[1732267802503,1.5078,3355.1,3354.4,0.2969]
[1732267802796,1.5078,3354.9,3354.2,0.2969]
[1732267802968,0.55,3354.6,3354.1,0.1602892]
[1732267803304,1.5078,3354.5,3354.1,0.1602892]
[1732267803664,1.5078,3354.5,3354.2,0.2969]
[1732267803980,1.5166,3354.3,3354.2,0.2969]
[1732267804297,1.5166,3354.3,3353.1,1.41002462]
[1732267804596,5.9288886,3354.2,3353.1,1.43686497]
[1732267804759,0.74454886,3354.1,3353.2,1.71554599]
[1732267805105,1.4544,3354.0,3353.2,1.71554599]
[1732267805556,0.81811775,3354.8,3353.5,0.2969]
[1732267805557,1.4544,3354.4,3353.5,0.2969]
[1732267806820,1.45213784,3354.4,3353.5,0.2969]
[1732267808621,1.45213784,3354.4,3353.6,0.2969]
[1732267809224,2.19024048,3354.4,3353.6,0.2969]
[1732267809737,2.19024048,3354.4,3353.4,0.2969]
[1732267809924,5.9288886,3354.3,3353.4,0.2969]
[1732267810742,5.9288886,3354.3,3353.5,0.2969]
[1732267811538,5.9288886,3354.3,3353.6,0.2969]
[1732267811744,6.66699124,3354.3,3353.6,0.2969]
[1732267811903,1.5494,3354.2,3353.6,0.2969]
[1732267812541,1.5494,3354.2,3353.2,0.2969]
[1732267813606,1.5494,3354.2,3353.1,3.75350166]
[1732267813607,1.5494,3354.2,3353.1,0.2969]
[1732267813811,0.82163912,3354.1,3353.1,0.2969]
[1732267814031,0.8200718,3354.1,3353.1,3.2969]
[1732267814234,0.8200718,3354.1,3353.1,0.2969]
[1732267814447,0.82983604,3354.0,3353.4,0.2969]
[1732267814742,1.4621,3353.9,3353.4,0.2969]
[1732267815046,3.49686243,3353.6,3352.8,0.005]
[1732267815220,1.525,3353.4,3352.8,0.005]
[1732267815405,1.0950751,3353.3,3352.8,0.005]
[1732267816057,1.09507497,3353.3,3352.8,0.005]
[1732267816358,1.525,3353.1,3352.8,0.005]
[1732267816853,3.49686243,3352.9,3349.6,0.01]
[1732267817150,1.525,3352.7,3350.7,1.76568619]
[1732267817461,1.4333,3352.3,3350.7,1.0252892]
[1732267817643,0.02982916,3352.2,3350.7,1.0252892]
[1732267817847,0.02982916,3352.2,3350.7,1.20251225]
[1732267817848,5.9288886,3352.1,3350.7,1.20251225]
[1732267818148,0.02982916,3352.0,3350.7,1.20251225]
[1732267818353,5.95871776,3352.1,3350.7,1.23235151]
[1732267818551,5.9288886,3352.1,3351.3,3.0]
[1732267818717,0.02982916,3352.0,3351.3,3.0]
[1732267819148,0.02982916,3352.0,3350.8,0.19494535]
[1732267819316,0.02982916,3352.0,3351.3,3.0]
[1732267819854,5.9288886,3352.0,3351.6,1.4859]
[1732267820049,7.4697886,3352.7,3351.7,0.15157397]
[1732267820266,5.9288886,3352.6,3351.8,0.2969]
[1732267820432,5.9288886,3352.6,3351.7,0.18140734]
[1732267820433,5.9288886,3352.6,3352.3,3.0]
[1732267820636,5.9288886,3352.6,3352.0,0.2969]
[1732267820959,5.9288886,3352.6,3352.3,3.0]
[1732267821256,5.9288886,3352.6,3352.0,0.2969]
[1732267821416,5.9288886,3353.0,3352.0,0.2969]
[1732267821617,6.67586746,3353.0,3352.3,3.0]
[1732267821853,0.02982916,3352.9,3352.3,3.0]
[1732267822027,0.02982916,3352.9,3351.3,0.2969]
[1732267822028,1.4816,3352.8,3351.3,0.2969]
[1732267822228,1.4816,3352.6,3351.7,0.2969]
[1732267822427,1.4816,3352.4,3351.7,0.2969]
[1732267822629,1.4816,3352.2,3351.7,0.2969]
[1732267822831,1.4816,3352.0,3351.7,0.2969]
[1732267823156,1.4816,3352.0,3350.8,0.2969]
[1732267823157,5.95871776,3351.9,3350.8,0.2969]
[1732267823363,1.5105,3351.7,3350.7,1.0252892]
[1732267823518,0.02982916,3351.6,3350.7,1.0252892]
[1732267824350,0.02982916,3351.6,3350.8,0.2969]
[1732267825945,0.02982916,3351.6,3351.0,1.5213]
[1732267826156,1.54032916,3351.7,3351.0,1.5213]
[1732267826459,1.54032916,3351.7,3350.7,4.0252892]
[1732267826655,5.9288886,3351.8,3350.8,0.40252892]
[1732267826838,5.9288886,3351.8,3350.9,0.2969]
[1732267827042,5.9288886,3351.8,3351.1,0.2969]
[1732267827245,1.60802916,3351.7,3351.2,0.2969]
[1732267827427,1.60802916,3351.7,3350.7,1.0252892]
[1732267827867,5.9288886,3351.6,3350.8,0.2969]
[1732267828074,0.02982916,3351.5,3350.8,0.2969]
[1732267828260,5.95871776,3351.6,3350.8,0.2969]
[1732267828638,5.9288886,3351.6,3351.1,3.0]
[1732267828843,5.9288886,3351.6,3350.8,0.2969]
[1732267829051,5.95871776,3351.6,3350.8,0.2969]
[1732267829335,6.72550691,3351.6,3350.8,0.2969]
[1732267829536,5.9288886,3351.5,3350.8,0.2969]
[1732267829944,5.6319886,3351.5,3350.7,1.0252892]
[1732267830145,5.66181776,3351.4,3350.7,1.0252892]